bitfinex-derivatives/quotes_SOLF0:USTF0_20260203
["timestamp","ask_amount","ask_price","bid_price","bid_amount"]
[1770111950136,2.40453206,103.21,103.16,12.18476546]
[1770111950334,5.9274113,103.21,103.16,12.18476546]
[1770111957744,14.6549113,103.21,103.16,12.18476546]
[1770111958243,135.7241,103.24,103.14,138.25673206]
[1770111958244,6.19978591,103.23,103.17,12.34982768]
[1770111958442,3.79525385,103.22,103.17,12.34982768]
[1770111959442,12.52185385,103.22,103.17,12.34982768]
[1770111960041,3.79525385,103.22,103.17,12.34982768]
[1770111960746,2.40453206,103.23,103.19,3.61922768]
[1770111963347,6.19978591,103.23,103.18,12.34902768]
[1770111964249,6.19978591,103.23,103.19,8.729]
[1770111970347,6.19978591,103.25,103.2,3.61922768]
[1770111971252,6.19978591,103.25,103.22,8.7265]
[1770111974858,6.19978591,103.25,103.21,8.7273]
[1770111978961,6.19978591,103.25,103.2,12.34732768]
[1770111979967,3.79525385,103.24,103.2,12.34732768]
[1770111980167,3.79525385,103.24,103.2,3.61922768]
[1770111981664,3.6216015,103.22,103.18,3.66359826]
[1770111982661,6.02613356,103.23,103.18,3.66359826]
[1770111983261,3.6216015,103.22,103.18,3.66359826]
[1770111990878,3.6216015,103.22,103.16,3.66359826]
[1770111991175,14.75363356,103.21,103.16,3.66359826]
[1770111991578,3.6216015,103.2,103.16,3.66359826]
[1770111991777,3.6216015,103.2,103.14,3.66359826]
[1770111992281,3.6216015,103.2,103.14,12.39699826]
[1770111992882,3.6216015,103.19,103.14,3.66359826]
[1770111993182,6.02613356,103.19,103.14,3.66359826]
[1770111993577,3.6216015,103.18,103.14,3.66359826]
[1770111993782,3.6216015,103.18,103.13,3.66359826]
[1770111995583,11.13373206,103.19,103.13,3.66359826]
[1770111995885,14.75533356,103.19,103.13,3.66359826]
[1770111996383,3.6216015,103.18,103.13,3.66359826]
[1770111997581,3.6216015,103.17,103.11,14.80521351]
[1770111997776,3.6216015,103.17,103.12,3.66359826]
[1770112000892,12.3525015,103.17,103.12,3.66359826]
[1770112007795,12.3533015,103.16,103.12,3.66359826]
[1770112008997,3.6216015,103.15,103.1,14.80611351]
[1770112009193,12.3543015,103.15,103.1,3.66359826]
[1770112010493,2.40581525,103.17,103.12,3.59180565]
[1770112010494,3.57928482,103.17,103.12,3.59180565]
[1770112011299,12.31018482,103.17,103.12,3.59180565]
[1770112011903,12.30898482,103.19,103.13,3.59180565]
[1770112012098,3.57928482,103.18,103.13,3.59180565]
[1770112013401,3.57928482,103.18,103.13,12.32580565]
[1770112013601,3.57928482,103.18,103.14,3.41484298]
[1770112013801,14.86767453,103.2,103.14,3.41484298]
[1770112014707,12.46015928,103.22,103.15,3.41484298]
[1770112015609,3.73345928,103.24,103.17,3.41484298]
[1770112015801,3.73345928,103.24,103.19,3.41484298]
[1770112016702,3.73345928,103.24,103.19,12.14384298]
[1770112020008,8.7239,103.26,103.18,2.40581525]
[1770112020009,3.73345928,103.26,103.21,3.41484298]
[1770112020207,3.73345928,103.28,103.23,3.41484298]
[1770112020409,3.73345928,103.3,103.23,3.41484298]
[1770112020704,2.40581525,103.31,103.25,3.41484298]
[1770112020900,3.73345928,103.32,103.25,3.41484298]
[1770112021511,12.45165928,103.32,103.25,12.13844298]
[1770112021712,3.73345928,103.31,103.25,12.13844298]
[1770112022007,6.13927453,103.33,103.26,3.41484298]
[1770112022204,6.13927453,103.33,103.27,3.41484298]
[1770112023909,6.13927453,103.33,103.26,11.12901525]
[1770112023910,3.73345928,103.32,103.26,3.41484298]
[1770112024410,6.13927453,103.32,103.26,3.41484298]
[1770112025311,6.13927453,103.3,103.24,3.41484298]
[1770112026010,3.73345928,103.27,103.22,3.41484298]
[1770112026214,2.40581525,103.26,103.2,3.41484298]
[1770112027112,6.13927453,103.26,103.2,12.14314298]
[1770112027814,2.40581525,103.26,103.21,12.14204298]
[1770112029218,6.13927453,103.28,103.22,3.41484298]
[1770112030414,6.13927453,103.28,103.23,8.7256]
[1770112031909,3.73345928,103.27,103.22,3.41484298]
[1770112032117,3.73345928,103.27,103.21,12.14174298]
[1770112032315,2.40581525,103.26,103.21,12.14174298]
[1770112033211,2.40581525,103.28,103.22,12.14134298]
[1770112033412,2.40581525,103.28,103.22,3.41484298]
[1770112033618,6.13927453,103.28,103.22,3.41484298]
[1770112034111,6.13927453,103.28,103.23,8.7257]
[1770112035019,2.40581525,103.26,103.21,8.7266]
[1770112035318,2.40581525,103.25,103.21,12.14144298]
[1770112035716,2.40581525,103.25,103.21,3.41484298]
[1770112036111,3.73345928,103.24,103.19,3.41484298]
[1770112036313,2.40581525,103.23,103.19,3.41484298]
[1770112038920,3.73345928,103.26,103.2,3.41484298]
[1770112039316,12.45915928,103.24,103.18,3.41484298]
[1770112039522,3.73345928,103.22,103.16,3.41484298]
[1770112040024,6.13927453,103.21,103.16,3.41484298]
[1770112043726,14.86677453,103.21,103.14,3.67234324]
[1770112043926,6.13927453,103.21,103.14,3.67234324]
[1770112045528,6.13927453,103.21,103.15,3.67234324]
[1770112046228,6.13927453,103.21,103.14,8.7325]
[1770112046229,3.43531076,103.2,103.14,12.40484324]
[1770112046428,3.43531076,103.2,103.15,3.67234324]
[1770112048718,5.84112601,103.21,103.15,12.40474324]
[1770112049526,5.84112601,103.21,103.16,3.67234324]
[1770112050727,5.84112601,103.21,103.16,12.40384324]
[1770112053226,3.43531076,103.21,103.16,12.40384324]
[1770112054030,14.56772601,103.22,103.17,3.67234324]
[1770112055230,5.84112601,103.22,103.17,12.40314324]
[1770112056532,5.83937225,103.22,103.17,12.40314324]
[1770112060833,5.83937225,103.18,103.13,3.67234324]
[1770112061038,2.40406149,103.17,103.13,3.67234324]
[1770112062236,5.83937225,103.17,103.11,3.67234324]
[1770112063439,5.83937225,103.17,103.11,12.40744324]
[1770112063639,5.83937225,103.17,103.12,3.67234324]
[1770112064331,5.83937225,103.17,103.11,8.7351]
[1770112064738,2.40406149,103.15,103.1,12.40884324]
[1770112065235,2.40406149,103.15,103.11,3.67234324]
[1770112066543,5.83937225,103.15,103.09,3.67234324]
[1770112067038,5.83937225,103.15,103.09,12.40974324]
[1770112067543,5.83937225,103.15,103.1,3.67234324]
[1770112068441,5.83937225,103.11,103.06,3.67234324]
[1770112068641,5.83937225,103.09,103.03,3.67234324]
[1770112068837,3.43531076,103.08,103.01,3.67234324]
[1770112069345,3.43531076,103.1,103.03,3.67234324]
[1770112070145,2.40406149,103.09,103.03,12.41494324]
[1770112070340,3.57058436,103.08,103.01,6.12707086]
[1770112070541,5.97464585,103.07,103.01,3.72300937]
[1770112072445,5.97464585,103.07,103.01,12.46740937]
[1770112073146,5.97464585,103.07,103.01,3.72300937]
[1770112078957,5.97464585,103.07,103.02,3.69377977]
[1770112079156,3.57058436,103.07,103.02,3.69377977]
[1770112080052,3.43625427,103.09,103.04,3.69377977]
[1770112080656,3.43625427,103.09,103.04,12.43537977]
[1770112080860,14.57621576,103.11,103.05,3.69377977]
[1770112081060,5.84031576,103.11,103.05,3.69377977]
[1770112081462,5.84031576,103.11,103.05,12.43477977]
[1770112081756,278.63625427,103.13,103.06,3.69377977]
[1770112081957,2.40406149,103.14,103.08,3.69377977]
[1770112082163,3.43625427,103.15,103.08,3.69377977]
[1770112082560,12.16715427,103.17,103.09,3.69377977]
[1770112082762,3.43625427,103.17,103.1,3.69377977]
[1770112082961,3.43625427,103.21,103.11,3.69377977]
[1770112083461,12.16535427,103.19,103.12,12.42867977]
[1770112084164,3.43625427,103.18,103.12,3.69377977]
[1770112086063,3.43625427,103.2,103.13,3.69377977]
[1770112088768,3.43625427,103.2,103.13,12.42777977]
[1770112089273,3.43625427,103.2,103.13,3.69377977]
[1770112090364,3.43625427,103.2,103.14,3.69377977]
[1770112091572,3.43625427,103.24,103.17,3.69377977]
[1770112092567,3.43625427,103.24,103.17,12.42457977]
[1770112093174,3.43625427,103.23,103.15,3.69377977]
[1770112094373,3.43625427,103.23,103.16,8.7314]
[1770112095476,3.43625427,103.23,103.17,8.7308]
[1770112097579,3.43625427,103.23,103.18,8.7298]
[1770112099277,3.43625427,103.23,103.15,3.66904935]
[1770112100280,3.43625427,103.23,103.16,8.7316]
[1770112100481,3.43625427,103.23,103.16,12.25287012]
[1770112101380,3.45767834,103.22,103.16,3.52127012]
[1770112102080,3.45767834,103.21,103.16,3.52127012]
[1770112102279,3.45767834,103.21,103.14,12.25387012]
[1770112102481,5.86236839,103.21,103.14,12.25387012]
[1770112103483,14.59036839,103.21,103.14,3.52127012]
[1770112103677,3.45767834,103.2,103.14,3.52127012]
[1770112105282,12.18617834,103.2,103.14,3.52127012]
[1770112105783,8.7285,103.2,103.14,3.52127012]
[1770112110982,12.18617834,103.2,103.14,3.52127012]
[1770112115486,3.45767834,103.19,103.14,3.52127012]
[1770112116191,3.45767834,103.16,103.1,3.52127012]
[1770112118291,12.19017834,103.16,103.1,3.52127012]
[1770112118989,3.45767834,103.16,103.11,3.52127012]
[1770112119990,3.45767834,103.15,103.09,3.52127012]
[1770112121292,3.45767834,103.15,103.09,12.25887012]
[1770112122092,3.45767834,103.15,103.1,3.52127012]
[1770112122492,8.7314,103.17,103.11,3.52127012]
[1770112122694,12.18907834,103.17,103.11,3.52127012]
[1770112123990,3.45767834,103.16,103.08,12.25907012]
[1770112124196,3.45767834,103.16,103.04,3.52127012]
[1770112124197,3.45767834,103.12,103.04,3.52127012]
[1770112124395,3.45767834,103.12,103.02,3.52127012]
[1770112124396,3.45767834,103.1,103.02,3.52127012]
[1770112124991,8.7385,103.08,103.02,3.52127012]
[1770112125194,3.45767834,103.08,103.02,3.52127012]
[1770112126396,3.45767834,103.08,103.0,3.52127012]
[1770112127088,3.45767834,103.07,103.0,3.52127012]
[1770112129498,3.45767834,103.07,103.0,12.26647012]
[1770112130098,3.45767834,103.07,102.99,8.746]
[1770112130099,3.45767834,103.06,102.99,8.746]
[1770112130397,3.45767834,103.06,102.99,12.17358072]
[1770112130998,3.44384665,103.05,102.99,3.42758072]
[1770112136201,3.45272402,103.04,102.96,3.44276058]
[1770112136696,3.45272402,103.03,102.98,3.44276058]
[1770112137302,3.45272402,103.05,102.99,3.44276058]
[1770112138108,3.45272402,103.08,103.01,3.44276058]
[1770112138406,3.45272402,103.07,102.98,3.44276058]
[1770112139401,3.45272402,103.06,103.0,3.44276058]
[1770112139802,3.45272402,103.06,103.01,3.44276058]
[1770112141707,3.45272402,103.05,102.99,12.18806058]
[1770112142211,3.45272402,103.05,102.99,3.44276058]
[1770112142401,3.45272402,103.05,102.97,8.747]
[1770112142402,3.45272402,103.04,102.97,12.18976058]
[1770112143310,12.19482402,103.04,102.97,12.18976058]
[1770112143811,3.45272402,103.03,102.97,12.18976058]
[1770112144405,3.45272402,103.03,102.94,473.69519739]
[1770112144406,3.45272402,103.03,102.95,3.44276058]
[1770112144603,3.45272402,103.02,102.96,3.44276058]
[1770112145409,3.45272402,103.04,102.96,3.44276058]
[1770112145910,3.45272402,103.04,102.98,8.7467]
[1770112146108,3.45272402,103.04,102.98,12.18946058]
[1770112146517,12.19302402,103.06,102.98,3.44276058]
[1770112146718,3.45272402,103.05,102.98,3.44276058]
[1770112146920,3.45272402,103.04,102.98,12.18966058]
[1770112147621,3.45272402,103.04,102.99,8.746]
[1770112148221,3.45272402,103.04,102.98,3.44276058]
[1770112149311,3.45272402,103.06,102.98,3.44276058]
[1770112149512,3.45272402,103.06,102.99,12.18886058]
[1770112150817,409.40039463,103.08,102.99,3.44276058]
[1770112150818,3.45272402,103.04,102.99,3.44276058]
[1770112152924,3.45272402,103.06,103.0,12.18776058]
[1770112153423,3.45272402,103.06,103.0,3.44276058]
[1770112154620,3.45272402,103.06,103.0,12.18776058]
[1770112155017,3.45272402,103.06,103.0,3.44276058]
[1770112155822,3.45272402,103.06,103.01,8.7444]
[1770112158031,3.45272402,103.06,103.0,12.18786058]
[1770112164235,3.45272402,103.06,103.01,8.7443]
[1770112166041,3.45272402,103.06,103.01,12.51328704]
[1770112166837,3.45272402,103.06,103.02,8.7435]
[1770112169337,3.45272402,103.06,103.02,12.51248704]
[1770112169539,8.7387,103.08,103.03,8.7427]
[1770112169540,3.49902105,103.08,103.03,8.7427]
[1770112169734,3.49902105,103.08,103.01,3.76898704]
[1770112171342,12.23842105,103.07,103.01,12.51318704]
[1770112173041,3.49902105,103.07,103.02,3.76898704]
[1770112173633,3.49902105,103.07,103.02,12.51238704]
[1770112174343,3.49902105,103.07,103.03,8.7425]
[1770112174545,0.18115286,103.07,103.03,12.51148704]
[1770112176444,2.41043748,103.09,103.04,3.76898704]
[1770112176645,5.90945853,103.11,103.04,3.76898704]
[1770112177250,5.90945853,103.11,103.06,8.7401]
[1770112177852,3.49902105,103.1,103.05,12.50988704]
[1770112178054,5.90945853,103.09,103.03,3.76898704]
[1770112178548,2.4105477,103.08,103.03,12.51098704]
[1770112179155,5.90956875,103.08,103.03,8.742]
[1770112179353,3.49902105,103.07,103.03,8.742]
[1770112179753,3.49902105,103.07,103.02,12.51238704]
[1770112182654,3.49902105,103.07,102.99,467.4816]
[1770112182655,139.44522105,103.07,102.99,3.76898704]
[1770112182859,5.90956875,103.04,102.99,3.76898704]
[1770112183054,5.90956875,103.04,102.97,3.76898704]
[1770112183358,14.65206875,103.04,102.97,3.76898704]
[1770112184149,3.49902105,103.03,102.97,3.76898704]
[1770112185161,3.49902105,103.03,102.97,12.51658704]
[1770112186757,2.4105477,103.04,102.99,3.76898704]
[1770112186958,5.90956875,103.04,102.99,3.76898704]
[1770112188262,14.65166875,103.04,102.99,3.76898704]
[1770112189065,3.49902105,103.01,102.95,3.76898704]
[1770112189268,2.4105477,103.0,102.95,3.76898704]
[1770112190460,3.49902105,103.01,102.95,3.76898704]
[1770112190660,3.49902105,103.01,102.96,12.35485401]
[1770112190966,3.49902105,103.01,102.96,3.60635401]
[1770112196477,2.4105477,103.02,102.97,3.70443325]
[1770112197270,2.4105477,103.02,102.97,12.45213325]
[1770112199579,8.7419,103.04,102.98,3.70443325]
[1770112199580,2.4105477,103.04,102.98,3.70443325]
[1770112199781,6.00764092,103.04,102.98,3.70443325]
[1770112200177,3.59709322,103.03,102.98,12.45113325]
[1770112200379,2.4105477,103.04,102.97,3.70443325]
[1770112200583,6.00764092,103.04,102.97,3.70443325]
[1770112200881,6.00764092,103.04,102.98,12.45123325]
[1770112201383,3.59709322,103.04,102.99,8.746]
[1770112201583,14.74794092,103.06,102.99,3.70443325]
[1770112201788,2.4105477,103.06,103.0,3.70443325]
[1770112201977,6.00764092,103.08,103.02,12.44713325]
[1770112202178,3.59709322,103.1,103.03,3.70443325]
[1770112202483,6.00764092,103.09,103.03,3.70443325]
[1770112203386,14.74524092,103.09,103.03,3.70443325]
[1770112203686,3.59709322,103.08,103.03,3.70443325]
[1770112204983,2.4105477,103.07,103.01,12.44873325]
[1770112205390,2.4105477,103.07,103.02,3.70443325]
[1770112206687,12.33569322,103.08,103.02,3.70443325]
[1770112206894,6.00764092,103.08,103.02,3.70443325]
[1770112208292,3.59709322,103.08,103.03,3.70443325]
[1770112208494,6.00764092,103.1,103.04,3.70443325]
[1770112210388,6.00764092,103.1,103.04,12.44623325]
[1770112211799,3.59709322,103.1,103.05,3.70443325]
[1770112217395,3.59709322,103.1,103.05,12.44533325]
[1770112217800,6.00764092,103.1,103.05,3.70443325]
[1770112219701,6.00764092,103.1,103.04,8.7417]
[1770112219702,3.59709322,103.09,103.04,8.7417]
[1770112220405,3.59709322,103.09,103.03,14.85748095]
[1770112221306,3.59709322,103.09,103.03,12.44693325]
[1770112221501,3.59709322,103.09,103.03,3.70443325]
[1770112222307,3.59709322,103.09,103.03,12.44693325]
[1770112222612,3.63413603,103.07,103.0,3.6922696]
[1770112222808,3.63413603,103.05,103.0,3.6922696]
[1770112223198,3.63413603,103.03,102.96,3.6922696]
[1770112223508,2.4105477,103.0,102.96,3.6922696]
[1770112227509,2.4105477,103.0,102.95,3.6922696]
[1770112228210,269.06468373,103.02,102.95,12.4416696]
[1770112228401,269.06468373,103.02,102.96,3.6922696]
[1770112230711,6.04468373,103.02,102.96,12.4407696]
[1770112230911,6.04468373,103.02,102.96,3.6922696]
[1770112232404,2.4105477,103.02,102.97,3.6922696]
[1770112232604,264.0,103.05,102.97,3.6922696]
[1770112232811,270.04468373,103.05,102.98,3.6922696]
[1770112233311,6.04468373,103.05,102.98,3.6922696]
[1770112234406,6.04468373,103.05,102.98,12.4390696]
[1770112235310,3.63413603,103.04,102.98,12.4390696]
[1770112238614,3.63413603,103.04,102.99,3.6922696]
[1770112239012,3.63413603,103.04,102.99,12.4375696]
[1770112241316,6.04593841,103.06,103.0,12.4372696]
[1770112243420,3.63413603,103.05,103.0,3.6922696]
[1770112243620,6.04593841,103.04,102.98,3.6922696]
[1770112245318,2.41180238,103.04,102.98,3.6922696]
[1770112245617,3.63413603,103.03,102.98,3.6922696]
[1770112248420,3.63413603,103.03,102.98,12.4391696]
[1770112248719,3.63413603,103.03,102.98,3.6922696]
[1770112249720,2.41180238,103.04,102.98,3.6922696]
[1770112249921,2.41180238,103.04,102.99,12.4381696]
[1770112251021,3.63413603,103.05,102.99,12.4381696]
[1770112251223,3.63413603,103.05,103.0,3.54379926]
[1770112252419,2.41180238,103.06,103.01,3.68081819]
[1770112252625,5.85662587,103.06,103.01,3.68081819]
[1770112253426,14.59702587,103.06,102.99,3.68081819]
[1770112253825,2.41180238,103.04,102.99,3.68081819]
[1770112254224,5.85662587,103.04,102.99,3.68081819]
[1770112256828,2.41180238,103.04,102.99,3.68081819]
[1770112260534,14.59852587,103.04,102.99,3.68081819]
[1770112261138,5.85662587,103.02,102.97,3.68081819]
[1770112261324,5.85662587,103.02,102.93,182.7767]
[1770112261325,3.44482349,103.01,102.95,3.68081819]
[1770112261631,5.85662587,103.0,102.95,3.68081819]
[1770112262029,3.44482349,103.0,102.95,3.68081819]
[1770112263029,3.44482349,103.02,102.96,3.68081819]
[1770112263237,5.85662587,103.04,102.97,3.68081819]
[1770112263730,5.85662587,103.04,102.98,3.68081819]
[1770112264138,3.44482349,103.03,102.98,3.68081819]
[1770112264541,5.85662587,103.02,102.96,3.68081819]
[1770112266043,5.85662587,103.02,102.97,3.68081819]
[1770112266241,0.36978392,103.02,102.97,3.68081819]
[1770112268842,11.15530238,103.03,102.97,3.68081819]
[1770112269044,2.41180238,103.03,102.97,3.68081819]
[1770112269944,5.85662587,103.03,102.97,3.68081819]
[1770112270442,2.41180238,103.03,102.98,3.68081819]
[1770112271039,2.41180238,103.01,102.96,3.68081819]
[1770112271242,5.85662587,102.99,102.92,33.83682702]
[1770112271434,5.85662587,102.99,102.92,3.68081819]
[1770112272034,239.15662587,103.01,102.93,3.68081819]
[1770112272238,5.85662587,103.01,102.94,3.68081819]
[1770112273344,5.85662587,103.01,102.95,12.43031819]
[1770112274143,5.85662587,103.01,102.95,3.68081819]
[1770112275941,5.85662587,103.01,102.96,3.68081819]
[1770112278941,14.59942587,103.03,102.96,3.68081819]
[1770112279141,14.59942587,103.03,102.97,3.68081819]
[1770112279345,258.94,103.06,102.97,6.09262057]
[1770112279346,5.85662587,103.05,102.97,6.09262057]
[1770112279547,5.85662587,103.05,102.99,3.68081819]
[1770112280550,5.85662587,103.05,103.0,3.55100739]
[1770112281750,14.80421274,103.08,103.01,3.55100739]
[1770112282056,14.80421274,103.08,103.01,33.70701622]
[1770112282444,2.41180238,103.09,103.03,3.55100739]
[1770112283050,3.65381036,103.1,103.03,3.55100739]
[1770112283348,3.65381036,103.1,103.04,3.55100739]
[1770112289365,3.65381036,103.1,103.05,8.7409]
[1770112289864,12.38891036,103.12,103.05,12.29190739]
[1770112290062,3.65381036,103.11,103.05,12.29190739]
[1770112290469,3.65381036,103.13,103.06,8.74]
[1770112291157,3.65381036,103.12,103.05,3.55100739]
[1770112292366,3.65381036,103.1,103.05,3.55100739]
[1770112295967,3.65381036,103.12,103.06,3.55100739]
[1770112296869,3.65381036,103.12,103.06,12.29110739]
[1770112299467,3.65381036,103.12,103.07,8.7393]
[1770112300471,3.65381036,103.12,103.08,8.7384]
[1770112300665,3.65381036,103.12,103.06,3.55100739]
[1770112301865,3.65381036,103.12,103.07,8.7393]
[1770112302467,3.65381036,103.12,103.06,12.29090739]
[1770112303171,3.65381036,103.12,103.07,12.29010739]
[1770112304472,2.4092708,103.11,103.07,12.29010739]
[1770112305172,2.4092708,103.11,103.07,3.55100739]
[1770112305966,6.06308116,103.12,103.07,12.29000739]
[1770112306368,6.06308116,103.12,103.07,3.55100739]
[1770112307373,14.79828116,103.12,103.07,3.55100739]
[1770112307768,6.06308116,103.12,103.07,3.55100739]
[1770112308967,3.65381036,103.11,103.06,8.74]
[1770112309269,3.65381036,103.11,103.06,12.29100739]
[1770112310970,3.65381036,103.11,103.07,3.7687631]
[1770112311271,6.14568269,103.13,103.08,3.7687631]
[1770112311470,8.7327,103.15,103.08,3.7687631]
[1770112311471,6.14568269,103.15,103.08,3.7687631]
[1770112311668,6.14568269,103.15,103.1,3.7687631]
[1770112311868,135.7574,103.22,103.11,3.7687631]
[1770112311869,6.14568269,103.17,103.11,3.7687631]
[1770112312371,3.52992982,103.16,103.11,3.7687631]
[1770112314473,5.93920062,103.16,103.11,3.7687631]
[1770112314972,2.4092708,103.14,103.09,3.46283584]
[1770112315776,5.93920062,103.14,103.09,3.46283584]
[1770112317066,5.93920062,103.14,103.07,3.46283584]
[1770112317067,2.4092708,103.12,103.07,3.46283584]
[1770112317375,3.52992982,103.13,103.07,3.46283584]
[1770112317576,2.4092708,103.12,103.07,3.46283584]
[1770112317978,2.4092708,103.14,103.07,3.46283584]
[1770112318278,2.4092708,103.14,103.09,3.46283584]
[1770112318474,2.4092708,103.16,103.09,3.46283584]
[1770112318681,5.93920062,103.16,103.09,3.46283584]
[1770112320180,2.4092708,103.16,103.11,3.46283584]
[1770112320480,268.91992982,103.18,103.11,3.46283584]
[1770112320481,3.52992982,103.17,103.11,3.46283584]
[1770112320978,3.52992982,103.15,103.09,3.46283584]
[1770112321182,2.4092708,103.12,103.07,3.46283584]
[1770112322386,3.52992982,103.11,103.05,3.46283584]
[1770112322684,2.4092708,103.1,103.05,3.46283584]
[1770112323189,2.4092708,103.08,103.03,3.46283584]
[1770112323481,2.4092708,103.1,103.03,3.46283584]
[1770112323883,2.4092708,103.1,103.04,3.46283584]
[1770112324188,2.4092708,103.06,103.01,3.46283584]
[1770112324891,5.93920062,103.06,102.98,3.46283584]
[1770112325483,5.93920062,103.06,102.98,33.61884467]
[1770112325687,5.93920062,103.06,102.99,3.46283584]
[1770112326488,3.52992982,103.06,103.0,8.7451]
[1770112326689,3.52992982,103.06,103.01,3.46283584]
[1770112327885,3.52992982,103.06,103.01,12.20703584]
[1770112328884,3.52992982,103.06,102.99,3.46283584]
[1770112329881,3.52992982,103.06,103.0,12.20793584]
[1770112331489,3.52992982,103.06,103.0,3.46283584]
[1770112333187,3.52992982,103.08,103.0,3.46283584]
[1770112333686,3.52992982,103.08,103.01,12.20723584]
[1770112335692,3.52992982,103.07,103.01,12.20723584]
[1770112336088,3.52992982,103.07,103.01,3.46283584]
[1770112337294,12.26922982,103.07,103.01,3.46283584]
[1770112337494,3.52992982,103.07,103.01,12.20703584]
[1770112338386,3.52992982,103.07,103.02,12.20633584]
[1770112338997,12.26772982,103.09,103.02,12.20633584]
[1770112339295,12.26772982,103.09,103.03,12.20553584]
[1770112339497,3.52992982,103.09,103.03,12.20553584]
[1770112339692,3.52992982,103.11,103.04,3.46283584]
[1770112340088,3.52992982,103.11,103.05,12.20383584]
[1770112340291,3.52992982,103.11,103.05,3.46283584]
[1770112340998,3.52992982,103.11,103.05,12.20363584]
[1770112341194,3.52992982,103.11,103.06,3.68683495]
[1770112344900,12.26612982,103.11,103.04,12.42863495]
[1770112349004,3.52992982,103.11,103.05,12.42743495]
[1770112349204,3.52992982,103.11,103.05,8.7406]
[1770112349799,3.52992982,103.11,103.05,12.42743495]
[1770112355807,3.52992982,103.11,103.06,3.68683495]
[1770112359008,12.26612982,103.11,103.06,3.68683495]
[1770112359608,12.26612982,103.11,103.04,14.83779804]
[1770112359807,12.26612982,103.11,103.05,3.68683495]
[1770112360008,12.26612982,103.11,103.05,12.42783495]
[1770112361414,12.26612982,103.11,103.06,3.68683495]
[1770112361613,3.52992982,103.11,103.06,3.68683495]
[1770112362010,3.64576737,103.13,103.08,2.40916309]
[1770112362211,3.64576737,103.17,103.11,3.68683495]
[1770112362812,3.64576737,103.17,103.12,2.40916309]
[1770112363808,3.64576737,103.17,103.11,3.68683495]
[1770112364012,2.40916309,103.18,103.12,12.42183495]
[1770112364213,2.40916309,103.18,103.13,3.68683495]
[1770112364514,14.78115143,103.19,103.13,3.68683495]
[1770112365109,2.40568406,103.17,103.11,3.68683495]
[1770112365412,6.05145143,103.17,103.11,3.68683495]
[1770112365613,3.64576737,103.17,103.11,12.42253495]
[1770112366615,3.64576737,103.17,103.11,3.68683495]
[1770112366814,6.05145143,103.16,103.11,3.68683495]
[1770112367713,14.78315143,103.16,103.11,3.68683495]
[1770112367914,14.78315143,103.16,103.09,12.42443495]
[1770112369814,6.05145143,103.16,103.1,3.68683495]
[1770112370716,3.78845328,103.15,103.1,3.68683495]
[1770112373114,6.16596562,103.14,103.08,12.3246722]
[1770112374018,6.16596562,103.12,103.06,3.5863722]
[1770112378122,3.76028156,103.12,103.07,3.5863722]
[1770112378324,2.40568406,103.13,103.07,3.5863722]
[1770112378515,2.40568406,103.13,103.07,12.3249722]
[1770112378822,2.40568406,103.13,103.08,3.5863722]
[1770112379021,6.16596562,103.14,103.08,3.5863722]
[1770112381325,3.76028156,103.13,103.08,3.5863722]
[1770112385828,12.49448156,103.13,103.08,3.5863722]
[1770112386530,3.76028156,103.13,103.08,3.5863722]
[1770112392627,2.40568406,103.12,103.08,3.5863722]
[1770112392924,6.16596562,103.1,103.04,3.5863722]
[1770112393126,2.40568406,103.08,103.04,3.5863722]
[1770112393320,3.76028156,103.11,103.04,3.5863722]
[1770112393521,2.40568406,103.1,103.04,3.5863722]
[1770112395329,2.40568406,103.1,103.05,3.5863722]
[1770112400531,29.15,103.15,103.07,3.71938071]
[1770112400731,3.44549102,103.16,103.09,3.71938071]
[1770112401137,3.44549102,103.16,103.1,3.71938071]
[1770112401436,2.40568406,103.13,103.08,3.71938071]
[1770112403338,2.40568406,103.13,103.08,12.45758071]
[1770112406635,3.44549102,103.14,103.09,12.45678071]
[1770112406940,2.40568406,103.15,103.1,3.71938071]
[1770112410136,2.40568406,103.15,103.1,12.45578071]
[1770112412640,2.40568406,103.15,103.11,3.71938071]
[1770112413235,2.40568406,103.17,103.12,3.71938071]
[1770112414038,5.85117508,103.17,103.12,3.71938071]
[1770112414239,3.44549102,103.17,103.12,3.71938071]
[1770112414632,5.85117508,103.17,103.12,3.71938071]
[1770112415242,3.44549102,103.19,103.13,3.71938071]
[1770112415935,3.44549102,103.19,103.14,12.45278071]
[1770112418042,3.44549102,103.19,103.14,36.52466754]
[1770112418842,2.40568406,103.18,103.14,3.71938071]
[1770112419344,2.40568406,103.18,103.14,12.45268071]
[1770112424750,3.44549102,103.19,103.15,8.7324]
[1770112426054,3.44549102,103.19,103.16,8.7316]
[1770112429956,3.44549102,103.19,103.17,8.7308]
[1770112430157,2.40502077,103.2,103.17,8.7308]
[1770112431356,5.86807347,103.2,103.17,8.7308]
[1770112434762,2.40502077,103.18,103.13,139.64101871]
[1770112434961,2.40502077,103.18,103.13,3.78091871]
[1770112434962,6.16346817,103.18,103.13,3.78091871]
[1770112435157,6.16346817,103.18,103.13,12.51431871]
[1770112438361,6.16346817,103.18,103.13,3.78091871]
[1770112441262,14.89346817,103.18,103.13,3.78091871]